bitfinex/quotes_ETHUSD_20241119
["timestamp","ask_amount","ask_price","bid_price","bid_amount"]
[1732048179291,3.20764,3117.6,3117.1,1.60402]
[1732048179593,3.2072,3118.0,3117.6,0.7947]
[1732048179791,3.20697,3118.2,3117.6,0.7947]
[1732048179993,3.20754,3117.7,3117.1,2.39872]
[1732048180200,3.20718,3118.0,3117.3,1.60394]
[1732048180564,3.20759,3117.7,3117.1,2.39872]
[1732048180951,3.20759,3117.7,3117.2,1.604]
[1732048181151,3.20759,3117.7,3117.1,2.39872]
[1732048181152,3.20756,3117.7,3117.1,2.39872]
[1732048181387,3.20756,3117.7,3117.1,4.00273]
[1732048181598,3.20756,3117.7,3117.1,2.39871]
[1732048181892,6.4147,3117.9,3117.3,1.60394]
[1732048182067,3.20734,3117.9,3117.3,1.60394]
[1732048182248,3.20746,3117.8,3117.3,1.60394]
[1732048182979,3.20778,3117.5,3117.1,0.7947]
[1732048183183,0.320778,3117.4,3117.1,0.7947]
[1732048183363,3.20762,3117.6,3117.1,0.7947]
[1732048183690,0.77,3118.0,3117.1,0.7947]
[1732048183903,3.20776,3117.5,3117.1,0.7947]
[1732048184054,6.41443,3118.0,3117.2,1.60397]
[1732048184249,6.41443,3118.0,3117.5,0.8059]
[1732048184479,3.2072,3118.0,3117.5,0.8059]
[1732048184680,3.20697,3118.2,3117.5,0.8059]
[1732048184889,3.20726,3118.0,3117.5,0.8059]
[1732048185106,3.20734,3117.9,3117.5,0.8059]
[1732048185472,3.20709,3118.1,3117.5,2.40971]
[1732048185473,3.2072,3118.0,3117.5,2.40971]
[1732048185684,3.20733,3117.9,3117.5,0.8059]
[1732048187842,3.20709,3118.1,3117.5,0.8059]
[1732048188367,3.20667,3118.5,3117.8,1.60366]
[1732048188636,0.7542,3118.8,3118.0,1.60355]
[1732048188837,0.7542,3118.8,3118.2,1.60348]
[1732048189143,3.20657,3118.6,3118.0,1.60355]
[1732048189451,3.20673,3118.5,3117.9,2.39383]
[1732048189814,3.602561,3118.7,3117.9,2.39381]
[1732048190004,3.20668,3118.5,3118.0,1.60359]
[1732048190632,3.20668,3118.5,3117.9,2.39383]
[1732048191214,6.41342,3118.5,3117.9,2.39383]
[1732048191434,3.20668,3118.5,3117.9,2.39383]
[1732048191642,6.41345,3118.5,3117.9,2.39383]
[1732048191851,3.20668,3118.5,3118.0,1.60355]
[1732048192175,3.20668,3118.5,3117.9,2.82250461]
[1732048192932,3.20668,3118.5,3117.9,1.21889461]
[1732048193145,3.20668,3118.5,3118.0,1.60358]
[1732048193452,3.20678,3118.4,3117.9,1.21889461]
[1732048193653,3.20696,3118.3,3117.9,0.7902]
[1732048193967,3.20711,3118.1,3117.9,0.7902]
[1732048194126,3.20716,3118.1,3117.9,0.7902]
[1732048194321,6.41432,3118.1,3117.9,0.7902]
[1732048194528,3.20718,3118.0,3117.9,0.7902]
[1732048194929,3.20706,3118.2,3117.9,0.7902]
[1732048196168,3.20682,3118.4,3117.9,0.7902]
[1732048196323,3.20696,3118.3,3117.9,0.7902]
[1732048196528,3.20695,3118.3,3117.9,0.7902]
[1732048196829,6.41389,3118.3,3117.9,0.7902]
[1732048197153,3.20694,3118.3,3117.9,0.7902]
[1732048197530,3.20698,3118.2,3117.9,0.7902]
[1732048197731,3.20694,3118.3,3117.9,0.7902]
[1732048199648,6.41389,3118.3,3117.9,0.7902]
[1732048199863,3.20694,3118.3,3117.9,0.7902]
[1732048200063,3.20697,3118.2,3117.9,0.7902]
[1732048200941,3.20656,3118.6,3117.9,0.7902]
[1732048201284,3.20699,3118.2,3117.9,0.7902]
[1732048201941,3.20699,3118.2,3117.5,1.60382]
[1732048201942,3.20718,3118.0,3117.5,0.7826]
[1732048202138,0.320696,3118.2,3117.5,0.7826]
[1732048202375,0.320696,3118.2,3117.2,3.0]
[1732048202376,3.20687,3118.3,3117.8,1.60368]
[1732048202578,3.2069,3118.3,3117.9,0.7826]
[1732048202952,3.2068,3118.4,3117.9,0.7826]
[1732048203284,3.20652,3118.7,3118.2,1.60348]
[1732048203487,3.20652,3118.7,3118.2,2.21353805]
[1732048203645,3.20652,3118.7,3118.3,0.7947]
[1732048203844,3.20644,3118.8,3118.3,0.7947]
[1732048204266,3.2063,3118.9,3118.3,2.3981]
[1732048204471,3.20636,3118.8,3118.3,2.3981]
[1732048204788,3.20648,3118.7,3118.3,0.7947]
[1732048205156,3.20664,3118.6,3118.0,2.36096]
[1732048205488,3.20648,3118.7,3118.2,1.60348]
[1732048205692,3.20657,3118.6,3118.0,2.36095]
[1732048205846,3.20636,3118.8,3118.0,2.757422]
[1732048206039,3.20636,3118.8,3118.2,1.60345]
[1732048206296,3.96943,3119.0,3118.2,1.60345]
[1732048206472,3.20617,3119.0,3118.5,1.60332]
[1732048206673,0.38006877,3119.0,3118.5,1.60332]
[1732048206844,3.20608,3119.1,3118.5,1.60332]
[1732048207051,3.58614877,3119.1,3118.5,1.60332]
[1732048207247,3.20606,3119.1,3118.6,1.60327]
[1732048207673,3.20606,3119.1,3118.7,0.7953]
[1732048208285,3.2059,3119.3,3118.8,1.60314]
[1732048208595,3.20596,3119.2,3118.7,0.7953]
[1732048208774,3.20576,3119.4,3118.8,1.60318]
[1732048209552,3.2059,3119.3,3118.8,1.60318]
[1732048209774,0.4677536,3119.3,3118.7,0.7953]
[1732048210093,3.20631,3118.9,3118.4,0.8119]
[1732048210288,3.20652,3118.7,3118.4,0.8119]
[1732048210504,3.20677,3118.4,3118.1,0.8119]
[1732048210792,3.20688,3118.3,3117.7,1.60371]
[1732048210956,3.20688,3118.3,3117.8,1.60369]
[1732048211352,0.786,3118.8,3118.0,0.7982]
[1732048211588,3.20673,3118.5,3118.0,0.7982]
[1732048212088,6.41348,3118.5,3118.0,0.7982]
[1732048212279,3.20679,3118.4,3118.0,0.7982]
[1732048213067,3.20648,3118.7,3118.0,0.7982]
[1732048213294,3.20628,3118.9,3118.1,1.60354]
[1732048213595,0.7739,3119.1,3118.0,3.93214052]
[1732048213596,0.7739,3119.1,3118.2,0.8161]
[1732048213760,3.20652,3118.7,3118.2,0.8161]
[1732048214094,0.7739,3119.1,3117.9,1.60361]
[1732048214095,3.20672,3118.5,3117.9,1.60361]
[1732048214300,3.20692,3118.3,3117.8,1.60366]
[1732048214450,3.20672,3118.5,3117.8,1.60365]
[1732048214651,6.41348,3118.5,3117.8,3.448395]
[1732048214852,3.20662,3118.6,3118.0,3.20712]
[1732048215051,3.20662,3118.6,3118.1,0.320712]
[1732048215287,3.20667,3118.5,3118.0,1.60356]
[1732048215787,3.20654,3118.7,3118.1,1.60352]
[1732048216099,3.20617,3119.0,3118.5,1.60332]
[1732048216308,3.20603,3119.2,3118.5,1.60329]
[1732048216598,3.58674758,3119.2,3118.6,0.238942]
[1732048216766,3.20603,3119.2,3118.6,1.842182]
[1732048216973,3.20603,3119.2,3118.7,0.3445472]
[1732048217658,3.58653035,3119.4,3118.8,1.60314]
[1732048217883,0.38073035,3119.5,3118.8,0.8317]
[1732048218088,3.58640035,3119.5,3118.9,1.60309]
[1732048218293,3.20556,3119.6,3119.0,1.60304]
[1732048218457,0.38055318,3119.7,3118.8,1.10964272]
[1732048218802,0.38055318,3119.7,3117.7,0.01]
[1732048218803,3.20643,3118.8,3118.2,2.43516]
[1732048218996,3.20647,3118.7,3118.2,2.43516]
[1732048219191,0.8045,3118.9,3118.2,0.8317]
[1732048219367,3.20677,3118.4,3117.8,1.60369]
[1732048219565,3.20677,3118.4,3117.6,1.60379]
[1732048219770,3.20677,3118.4,3117.8,1.60366]
[1732048220084,3.20677,3118.4,3117.9,0.8317]
[1732048220252,3.20677,3118.4,3117.9,2.43534]
[1732048220678,3.20661,3118.6,3118.0,1.60357]
[1732048221363,3.20684,3118.4,3117.9,0.8317]
[1732048221973,3.20689,3118.3,3117.9,0.8317]
[1732048222495,3.20675,3118.5,3117.9,0.8317]
[1732048222707,3.20678,3118.4,3117.9,2.43533]
[1732048222883,3.20689,3118.3,3117.9,0.8317]
[1732048223999,0.8045,3118.9,3117.9,0.8317]
[1732048224167,0.38054821,3118.8,3117.9,0.8317]
[1732048224359,0.8045,3118.9,3117.9,0.8317]
[1732048224626,3.20639,3118.8,3118.2,2.40728]
[1732048224762,3.20649,3118.7,3118.2,0.8038]
[1732048225769,0.8017,3120.5,3118.2,0.8038]
[1732048226062,1.62115309,3122.0,3119.7,2.37417]
[1732048226063,0.8017,3121.0,3119.7,2.37417]
[1732048226270,3.20446,3120.7,3119.8,3.52679305]
[1732048226565,3.20453,3120.6,3119.8,3.52679305]
[1732048226784,0.8017,3121.0,3119.8,0.52679305]
[1732048227113,3.2042,3120.9,3119.8,0.52679305]
[1732048227263,0.8017,3121.0,3119.8,0.52679305]
[1732048227264,0.8017,3121.0,3119.9,1.60261]
[1732048227473,3.20421,3120.9,3119.9,1.60261]
[1732048227774,3.2044,3120.8,3119.7,2.37421]
[1732048227988,0.43863935,3120.8,3119.7,0.7715]
[1732048228175,0.43863935,3120.8,3118.8,2.90376052]
[1732048228176,3.20473,3120.4,3119.0,0.7715]
[1732048228376,3.20494,3120.2,3119.1,1.60301]
[1732048228577,3.20507,3120.1,3119.0,0.7715]
[1732048228803,3.20532,3119.9,3119.0,0.7715]
[1732048229039,0.320532,3119.8,3119.0,0.7715]
[1732048229635,0.320532,3119.8,3118.7,2.37779]
[1732048229636,0.7641,3119.7,3118.7,2.37779]
[1732048229798,0.7641,3119.7,3118.7,0.7746]
[1732048229994,0.55,3119.6,3118.9,1.60311]
[1732048230196,0.55,3119.6,3118.7,2.3778]
[1732048230397,3.20573,3119.5,3118.7,0.7746]
[1732048230708,0.925573,3119.4,3118.7,0.7746]
[1732048231836,0.55,3119.5,3118.7,0.7746]
[1732048232395,3.55,3119.5,3118.7,0.7746]
[1732048233025,3.20574,3119.4,3118.7,0.7746]
[1732048233197,3.75592,3119.3,3118.4,2.42378]
[1732048233401,3.20597,3119.2,3118.4,0.8204]
[1732048233604,0.7945,3119.1,3118.4,0.8204]
[1732048233906,3.2063,3118.9,3118.1,0.8204]
[1732048234205,0.55,3118.8,3118.1,0.8204]
[1732048234796,3.75636,3118.8,3118.1,0.8204]
[1732048235000,3.75636,3118.8,3117.9,1.92434]
[1732048235200,0.375636,3118.7,3117.9,1.92434]
[1732048235735,0.375636,3118.7,3118.0,1.92426]
[1732048236148,0.375636,3118.7,3117.8,0.7559]
[1732048236313,4.67043515,3118.6,3117.8,0.7559]
[1732048236516,0.78737255,3118.5,3117.5,0.7559]
[1732048236822,0.23737611,3118.4,3117.5,0.7559]
[1732048237029,3.98993724,3118.4,3117.5,2.68046]
[1732048237244,0.55,3118.3,3117.5,0.7559]
[1732048237565,0.55,3118.5,3117.9,1.92436]
[1732048237842,0.55,3118.6,3118.0,1.9243]
[1732048238946,0.55,3118.6,3117.9,1.92436]
[1732048239500,0.55,3118.6,3117.8,1.92441]
[1732048239804,0.55,3118.6,3118.1,1.92424]
[1732048239805,1.2631996,3118.6,3118.1,1.92424]
[1732048241238,1.2631996,3118.6,3117.9,1.92436]
[1732048241603,1.2631996,3118.6,3118.0,1.9243]
[1732048242004,4.4697696,3118.6,3117.9,1.92432]
[1732048242240,0.78453156,3118.5,3117.9,1.92432]
[1732048242417,0.78453156,3118.5,3117.5,2.68049]
[1732048242615,3.20698,3118.2,3117.5,0.7559]
[1732048242815,3.20698,3118.2,3117.5,2.6805]
[1732048243452,3.20698,3118.2,3117.5,4.60507]
[1732048243648,7.16452,3118.4,3117.6,1.92452]
[1732048243847,4.152636,3118.3,3117.6,1.92452]
[1732048244946,0.945766,3118.3,3117.6,1.92452]
[1732048245120,3.20698,3118.2,3117.6,1.92452]
[1732048245309,4.0180206,3118.2,3117.6,1.92452]
[1732048245909,4.0180206,3118.2,3117.7,1.92449]
[1732048245910,0.8110406,3118.2,3117.7,1.92449]
[1732048246810,4.0180106,3118.2,3117.5,2.68046]
[1732048247015,0.45679206,3118.1,3117.5,2.68046]
[1732048247960,0.45679206,3118.1,3117.6,1.9245]
[1732048248248,0.45679206,3118.1,3117.7,1.92445]
[1732048248453,0.8110406,3118.2,3117.6,3.84901]
[1732048248623,0.8110406,3118.2,3117.7,1.92447]
[1732048249355,0.55,3118.3,3117.5,0.7559]
[1732048249519,0.7508,3118.4,3117.9,1.92432]
[1732048249722,0.7508,3118.4,3117.7,1.92445]
[1732048250029,0.37508,3118.3,3117.7,1.92445]
[1732048250953,3.58201,3118.3,3117.6,1.92455]
[1732048251168,3.960939,3118.2,3117.5,2.68048]
[1732048251814,3.960939,3118.2,3117.5,1.92458]
[1732048252340,3.960939,3118.2,3117.5,3.84915]
[1732048252655,0.753959,3118.2,3117.5,1.92457]
[1732048252826,3.58198,3118.3,3117.6,1.9245]
[1732048253225,3.75698,3118.2,3117.6,1.9245]
[1732048253423,3.20708,3118.1,3117.5,1.9246]
[1732048253714,3.75698,3118.2,3116.9,2.68665]
[1732048253715,3.2076,3117.6,3116.9,2.68665]
[1732048253913,3.2076,3117.6,3116.9,1.92495]
[1732048254240,6.41528,3117.6,3116.9,1.92495]
[1732048254441,0.7542,3117.8,3116.9,1.92495]
[1732048254749,3.20772,3117.5,3116.9,1.92495]
[1732048254947,0.7609,3117.3,3116.7,3.85015]
[1732048255369,0.7609,3117.3,3116.8,1.92503]
[1732048256832,0.7609,3117.3,3116.9,1.92493]
[1732048258234,1.157762,3117.3,3116.7,1.92505]
[1732048258438,4.365682,3117.3,3116.7,1.92505]
[1732048258649,7.573662,3117.3,3116.7,1.92505]
[1732048258858,4.365682,3117.3,3116.7,1.92505]
[1732048259059,7.573662,3117.3,3116.7,1.92505]
[1732048259245,3.20823,3117.0,3116.5,1.9252]
[1732048259769,0.8086,3117.1,3116.1,1.92545]
[1732048260055,0.8086,3116.7,3116.1,1.92544]
[1732048260560,3.20869,3116.6,3116.0,1.92554]
[1732048260928,3.20869,3116.6,3115.7,1.9257]
[1732048261256,3.20869,3116.6,3115.8,1.92562]
[1732048261257,3.20885,3116.4,3115.8,1.92562]
[1732048261558,0.8086,3116.7,3115.8,2.88460709]
[1732048261853,0.8086,3116.7,3116.3,1.92531]
[1732048262356,0.8086,3116.7,3116.2,1.92542]
[1732048262913,4.01716,3116.7,3115.9,1.92557]
[1732048263216,3.75863,3116.6,3116.0,1.92553]
[1732048263891,3.20874,3116.5,3115.8,1.92561]
[1732048264095,3.20893,3116.3,3115.6,0.7613]
[1732048264404,4.01794,3115.9,3115.3,2.68727]
[1732048264715,4.01794,3115.9,3115.3,3.85187]
[1732048265014,0.8086,3115.9,3115.3,1.92593]
[1732048265209,1.531298,3115.9,3115.0,0.7574]
[1732048265519,0.8086,3115.9,3115.5,1.92581]
[1732048265674,0.8038,3116.2,3115.7,1.92572]
[1732048265871,1.755076,3116.2,3115.7,1.92572]
[1732048266067,1.755076,3116.2,3115.5,1.92582]
[1732048266316,3.20915,3116.1,3115.5,1.92582]
[1732048266475,3.20915,3116.1,3115.5,1.92581]
[1732048266701,4.964186,3116.2,3115.6,1.92578]
[1732048266901,4.56291,3116.2,3115.6,1.92578]
[1732048267407,1.3538,3116.2,3115.6,1.92575]
[1732048267609,0.8038,3116.2,3115.7,0.7786]
[1732048267824,0.8038,3116.2,3115.9,1.9256]
[1732048269498,3.7969,3116.6,3116.1,1.92548]
[1732048269705,4.117757,3116.6,3116.1,1.92548]
[1732048269915,7.326397,3116.6,3115.9,3.85115]
[1732048270123,7.326397,3116.6,3115.9,1.92555]
[1732048270742,4.2622867,3116.5,3115.8,1.92563]
[1732048270913,0.7969,3116.1,3115.2,2.68523]
[1732048271118,3.20953,3115.8,3115.1,1.9261]
[1732048271296,3.20966,3115.6,3115.1,1.9261]
[1732048272112,3.21001,3115.3,3114.7,1.92631]
[1732048272333,3.20998,3115.3,3114.7,1.92631]
[1732048272740,0.7951,3115.2,3114.7,1.92631]
[1732048272940,4.00517,3115.2,3114.7,1.92631]
[1732048273122,0.7951,3115.2,3114.7,1.92631]
[1732048273607,0.7951,3115.2,3114.9,1.92618]
[1732048274237,0.7951,3115.2,3115.0,1.92616]
[1732048274630,3.99219,3115.5,3115.0,1.92616]
[1732048274831,0.7824,3115.5,3115.0,1.92616]
[1732048275304,0.7824,3115.5,3114.8,1.92628]
[1732048275507,3.99223,3115.5,3114.9,1.92621]
[1732048275743,0.7824,3115.5,3115.0,1.92615]
[1732048276117,0.7824,3115.5,3115.1,1.92609]
[1732048277152,0.7824,3115.5,3115.0,1.92615]
[1732048277352,3.20992,3115.4,3114.7,1.92632]
[1732048277518,3.21017,3115.1,3114.3,2.72066]
[1732048277884,3.21036,3115.0,3114.3,2.72066]
[1732048278036,0.75,3115.1,3114.1,1.92671]
[1732048278037,3.21059,3114.7,3114.1,1.92671]
[1732048278218,0.75,3114.6,3114.1,1.92671]
[1732048278437,3.21079,3114.5,3114.0,0.7762]
[1732048278610,3.21079,3114.5,3113.9,1.92681]
[1732048278813,3.20566609,3114.7,3113.3,2.70338]
[1732048279121,0.75,3113.9,3113.4,1.92711]
[1732048279523,0.75,3113.9,3113.2,1.92726]
[1732048279524,3.96148,3113.9,3113.2,1.92726]
[1732048279741,0.75,3113.9,3113.2,1.92723]
[1732048279922,3.21151,3113.8,3113.2,1.92723]
[1732048280538,3.21167,3113.7,3113.0,2.68637]
[1732048280747,3.21151,3113.8,3113.0,2.68637]
[1732048280748,3.21151,3113.8,3113.1,1.92732]
[1732048281051,4.00382,3113.5,3112.9,1.92745]
[1732048281257,3.21194,3113.4,3112.4,0.7536]
[1732048281554,3.21194,3113.4,3112.6,1.92762]
[1732048281752,0.400394,3113.3,3112.7,1.92754]
[1732048281968,4.00383,3113.5,3112.9,1.92745]
[1732048282112,4.00383,3113.5,3113.1,1.92731]
[1732048282113,0.792,3113.5,3113.1,1.92731]
[1732048282319,0.792,3113.5,3113.0,1.9274]
[1732048282531,0.792,3113.5,3113.1,1.92729]
[1732048282753,0.792,3113.5,3112.9,1.92744]
[1732048282914,4.00389,3113.5,3112.7,2.992715]
[1732048283120,0.792,3113.5,3112.9,1.92744]
[1732048284262,0.792,3113.5,3113.0,1.92739]
[1732048284420,0.792,3113.5,3113.1,1.92728]
[1732048284759,0.792,3113.5,3113.1,0.385472]
[1732048284954,0.8041,3113.9,3113.3,1.92715]
[1732048285120,0.55,3113.8,3113.3,1.92715]
[1732048285657,0.55,3113.8,3113.0,1.9274]
[1732048285866,3.76173,3113.6,3112.9,1.92744]
[1732048286160,0.7943,3113.5,3112.9,1.92744]
[1732048286377,0.7943,3113.5,3112.9,3.85485]
[1732048286524,0.7943,3113.5,3113.1,1.92733]
[1732048286852,0.7943,3113.5,3112.9,1.92741]
[1732048287062,0.7943,3113.5,3113.1,1.92733]
[1732048287216,0.7943,3113.5,3112.9,3.85483]
[1732048287421,0.7943,3113.5,3113.0,1.92736]
[1732048287864,0.7943,3113.5,3113.1,1.9273]
[1732048288058,0.7943,3113.5,3113.2,1.92723]
[1732048289268,1.249891,3113.5,3113.0,1.92739]
[1732048289576,3.21204,3113.3,3112.7,1.92758]
[1732048289868,0.7628,3113.2,3112.7,1.92758]
[1732048290062,3.97496,3113.2,3112.6,1.92764]
[1732048290427,3.97496,3113.2,3112.5,1.92769]
[1732048290629,3.97496,3113.2,3112.6,1.92763]
[1732048290832,0.7964,3112.9,3112.3,1.92779]
[1732048291349,3.21271,3112.7,3112.0,1.92795]
[1732048291557,3.613621,3112.7,3112.1,1.92794]
[1732048291766,3.613621,3112.7,3112.1,1.92791]
[1732048291935,0.400911,3112.7,3112.1,1.92791]
[1732048292332,3.21264,3112.7,3112.1,1.92791]
[1732048292779,3.76256,3112.8,3112.2,1.92785]
[1732048292941,3.21256,3112.8,3112.2,1.92785]
[1732048293142,3.934703,3112.8,3112.2,1.92785]
[1732048293972,7.147333,3112.8,3112.2,1.92785]
[1732048294152,3.934703,3112.8,3112.2,1.92785]
[1732048294559,3.21266,3112.7,3112.2,1.92785]
[1732048294883,3.21287,3112.5,3112.0,1.92797]
[1732048295180,3.21301,3112.4,3111.8,1.92811]
[1732048295783,3.21301,3112.4,3111.6,1.92824]
[1732048296061,0.8163,3111.8,3111.2,1.92851]
[1732048296262,0.8163,3111.8,3111.2,1.92847]
[1732048296581,3.21373,3111.7,3111.0,1.92858]
[1732048296739,1.219284,3111.8,3111.1,1.92857]
[1732048296950,3.21369,3111.7,3111.2,1.92849]
[1732048297148,3.21369,3111.7,3111.1,1.92853]
[1732048297450,3.21395,3111.5,3110.8,1.92875]
[1732048297779,0.7804,3111.4,3111.0,1.92863]
[1732048298487,0.7804,3111.4,3111.0,0.192863]
[1732048298642,0.7804,3111.4,3111.0,1.9286]
[1732048298840,0.7804,3111.4,3110.5,4.57918955]
[1732048299492,0.7804,3111.4,3110.6,4.92885]
[1732048299779,0.7804,3111.4,3111.2,1.9285]
[1732048300079,0.7804,3111.4,3111.3,1.92845]
[1732048300846,0.7804,3111.4,3111.1,1.92854]
[1732048301061,0.7804,3111.4,3110.9,1.92866]
[1732048301489,0.7804,3111.4,3110.5,4.57918955]
[1732048301490,3.21409,3111.3,3110.5,2.71011]
[1732048301644,0.7804,3111.4,3110.7,1.92877]
[1732048302045,3.99439,3111.4,3110.7,1.92877]
[1732048302282,4.715225,3111.4,3110.7,1.92877]
[1732048302787,4.715225,3111.4,3110.5,2.71013]
[1732048302788,1.501235,3111.4,3110.8,1.92876]
[1732048303393,0.7568,3111.9,3111.3,1.92842]
[1732048303595,0.55,3111.8,3110.6,3.0]
[1732048303741,0.7568,3111.4,3110.8,1.92872]
[1732048303947,0.7568,3111.4,3110.8,1.92875]
[1732048304153,3.97079,3111.4,3110.6,1.92885]
[1732048304354,3.97079,3111.4,3110.7,1.92878]
[1732048304355,3.21416,3111.3,3110.7,1.92878]
[1732048304782,1.475271,3111.4,3110.2,4.92909]
[1732048305004,3.6830191,3111.3,3110.6,1.92883]
[1732048305360,3.21422,3111.2,3110.6,1.92883]
[1732048305703,3.21422,3111.2,3110.2,0.87471695]
[1732048305704,0.7568,3111.1,3110.9,1.92866]
[1732048306054,0.7568,3111.1,3110.7,1.9288]
[1732048306383,0.7568,3111.1,3110.5,1.9289]
[1732048306584,0.7568,3111.1,3110.5,1.92892]
[1732048306788,0.7568,3111.1,3110.7,1.9288]
[1732048307092,0.7568,3111.1,3110.5,1.92892]
[1732048307304,3.0,3111.1,3110.0,0.02]
[1732048307454,0.7568,3110.4,3110.0,0.02]
[1732048307950,0.8001,3110.2,3110.0,0.02]
[1732048308260,3.21533,3110.1,3110.0,0.02]
[1732048309194,4.01543,3110.1,3110.0,0.02]
[1732048309407,5.14537884,3110.1,3110.0,0.02]
[1732048309561,5.69537884,3110.1,3110.0,0.02]
[1732048310077,5.288486,3110.1,3110.0,0.02]
[1732048310902,5.288486,3110.1,3108.8,3.0]
[1732048310903,0.7548,3109.1,3107.6,0.7773]
[1732048311066,0.7548,3109.1,3107.9,0.7773]
[1732048311267,3.21668,3108.8,3108.2,1.93036]
[1732048311584,3.21668,3108.8,3108.1,1.93039]
[1732048311809,3.21653,3109.0,3108.4,1.93024]
[1732048312211,0.7548,3108.9,3107.5,0.7773]
[1732048312415,0.55,3108.7,3108.3,1.93029]
[1732048312599,1.076453,3108.9,3108.3,1.93029]
[1732048312803,0.7548,3108.9,3108.2,1.93035]
[1732048313002,0.7548,3108.9,3108.2,1.93034]
[1732048313201,0.7548,3108.9,3107.6,0.45752896]
[1732048313417,0.7548,3108.9,3108.4,1.93024]
[1732048313636,0.7548,3108.9,3108.6,1.93012]
[1732048314525,0.7548,3108.9,3108.4,1.93024]
[1732048314526,0.7548,3108.9,3108.4,1.9302]
[1732048314828,0.55,3108.5,3107.7,1.93064]
[1732048315034,0.55,3108.5,3107.9,1.93053]
[1732048315035,0.778,3108.4,3107.9,1.93053]
[1732048315190,0.778,3108.4,3107.7,1.93066]
[1732048315395,0.399499,3108.3,3107.9,1.93052]
[1732048315822,0.399499,3108.3,3107.8,1.9306]
[1732048316006,0.778,3108.4,3107.9,1.93051]
[1732048316332,0.778,3108.4,3107.4,1.93085]
[1732048316333,3.21744,3108.1,3107.4,1.93081]
[1732048316643,4.04648,3108.0,3107.3,1.93093]
[1732048316987,4.04658,3107.9,3107.1,0.09921756]
[1732048317188,1.3789,3107.9,3107.3,1.93089]
[1732048317421,4.59657,3107.9,3107.2,1.93095]
[1732048317635,0.459657,3107.8,3107.2,1.93095]
[1732048317812,3.677377,3107.8,3107.1,2.03024756]
[1732048318020,0.459657,3107.8,3107.3,1.93093]
[1732048318316,0.459657,3107.8,3107.2,1.93098]
[1732048318652,1.3789,3107.9,3107.1,0.09921756]
[1732048318653,0.8289,3107.9,3107.5,1.93075]
[1732048318931,0.8289,3107.9,3107.2,1.93099]
[1732048318932,0.55,3107.8,3107.2,1.93099]
[1732048319105,0.459654,3107.7,3107.3,1.93093]
[1732048319290,4.0465,3107.9,3107.3,1.93093]
[1732048319492,4.0465,3107.9,3107.1,0.09921756]
[1732048319493,0.8289,3107.9,3107.1,0.09921756]
[1732048319711,0.8289,3107.9,3107.7,1.93067]
[1732048319907,6.2169,3108.6,3107.7,0.193067]
[1732048319908,0.8226,3108.2,3107.7,0.193067]
[1732048320122,0.8226,3108.2,3107.8,1.93062]
[1732048320500,0.8226,3108.2,3107.7,1.93063]
[1732048320697,0.8226,3108.2,3107.9,1.93056]
[1732048321234,0.01,3109.2,3107.8,1.93062]
[1732048321235,0.7572,3108.7,3107.8,1.93062]
[1732048321450,3.21693,3108.6,3107.9,1.93052]
[1732048321610,0.7572,3108.7,3108.1,1.93038]
[1732048322007,0.7572,3108.7,3107.9,1.93055]
[1732048322008,0.7572,3108.7,3108.2,1.93036]
[1732048322219,0.7572,3108.7,3108.4,1.9302]
[1732048322547,0.7572,3109.1,3108.8,1.92999]
[1732048322710,0.7572,3109.1,3108.9,1.92992]
[1732048323091,0.7572,3109.1,3109.0,1.92988]
[1732048323294,0.769,3109.5,3109.0,1.92988]
[1732048323529,1.090586,3109.5,3109.1,1.9298]
[1732048323841,0.769,3110.1,3109.6,1.92949]
[1732048325225,3.613463,3110.4,3109.8,1.92938]
[1732048325400,3.613463,3110.4,3109.7,1.9294]
[1732048325600,0.4382463,3110.3,3109.7,1.9294]
[1732048325801,0.4382463,3110.3,3109.8,1.92937]
[1732048326099,0.4382463,3110.3,3109.5,1.92956]
[1732048326445,3.62042093,3110.2,3109.6,1.92949]
[1732048326594,0.36204209,3110.1,3109.6,1.92949]
[1732048326909,0.40517093,3110.2,3109.1,0.7839]
[1732048327256,3.0,3110.3,3109.2,1.92972]
[1732048327548,6.21512,3110.3,3109.5,1.92951]
[1732048327703,3.0,3110.3,3109.7,1.92944]
[1732048327896,0.943017,3110.2,3109.7,1.92944]
[1732048328102,0.943017,3110.2,3109.7,1.92942]
[1732048328304,3.21502,3110.4,3109.7,1.92942]
[1732048328613,3.0,3110.3,3109.7,1.9294]
[1732048329010,3.0,3110.4,3109.9,1.92929]
[1732048329221,0.698404,3110.3,3109.9,1.92929]
[1732048329836,0.769,3110.5,3110.0,1.92925]
[1732048330001,0.769,3110.5,3110.2,1.92913]
[1732048330197,0.769,3110.5,3110.1,1.92918]
[1732048330460,0.769,3110.5,3110.1,1.92914]
[1732048330739,0.769,3110.5,3110.2,1.92913]
[1732048331098,0.7615,3111.0,3110.6,1.92883]
[1732048331295,0.7615,3111.4,3110.8,1.92872]
[1732048331495,0.321401,3111.3,3110.8,1.92872]
[1732048331722,0.321401,3111.3,3110.9,1.92869]
[1732048331924,0.7615,3111.4,3110.9,1.92869]
[1732048332099,0.8266,3111.9,3111.3,1.92845]
[1732048332297,0.8266,3111.9,3111.4,1.92839]
[1732048332532,0.8266,3111.9,3111.5,1.92828]
[1732048332912,0.8266,3111.9,3111.3,1.92845]
[1732048333114,3.21357,3111.8,3110.8,1.92871]